fUST/lending_fUST_20240226
["ID","MTS","AMOUNT","RATE_DAILY","PERIOD"]
[315176890,1708903841852,-500.0,0.00019178,2]
[315176891,1708903841861,-500.0,0.00019178,2]
[315176892,1708903841870,-500.0,0.00019178,2]
[315176893,1708903841879,-2323.85,0.00019178,2]
[315176894,1708903841888,-170.10351684,0.00019178,2]
[315176895,1708903841897,-205.43376026,0.00019178,2]
[315176896,1708903841906,-720.77,0.00019178,2]
[315176897,1708903841914,-500.0,0.00019178,2]
[315176898,1708903841923,-500.0,0.00019178,2]
[315176899,1708903841932,-500.0,0.00019178,2]
[315176900,1708903841940,-500.0,0.00019178,2]
[315176901,1708903841949,-500.0,0.00019178,2]
[315176902,1708903841958,-500.0,0.00019178,2]
[315176903,1708903841967,-500.0,0.00019178,2]
[315176904,1708903841976,-500.0,0.00019178,2]
[315176905,1708903841985,-500.0,0.00019178,2]
[315176906,1708903841994,-500.0,0.00019178,2]
[315176907,1708903842004,-500.0,0.00019178,2]
[315176908,1708903842013,-500.0,0.00019178,2]
[315176909,1708903842021,-500.0,0.00019178,2]
[315176910,1708903842030,-500.0,0.00019178,2]
[315176911,1708903842040,-500.0,0.00019178,2]
[315176912,1708903842049,-791.48,0.00019178,2]
[315176913,1708903842059,-500.0,0.00019178,2]
[315176914,1708903842068,-11294.05,0.00019178,2]
[315176915,1708903842077,-500.0,0.00019178,2]
[315176916,1708903842086,-500.0,0.00019178,2]
[315176917,1708903842095,-513.27120478,0.00019178,2]
[315176918,1708903842104,-1798.93,0.00019178,2]
[315176919,1708903842113,-2773.39,0.00019178,2]
[315176920,1708903842122,-3995.5,0.00019178,2]
[315176921,1708903842131,-500.0,0.00019178,2]
[315176922,1708903842140,-243.58118859,0.00019178,2]
[315176923,1708903842149,-500.0,0.00019178,2]
[315176924,1708903842158,-500.0,0.00019178,2]
[315176925,1708903842167,-500.0,0.00019178,2]
[315176926,1708903842175,-500.0,0.00019178,2]
[315176927,1708903842184,-500.0,0.00019178,2]
[315176928,1708903842193,-506.70986665,0.00019178,2]
[315176929,1708903842202,-500.0,0.00019178,2]
[315176930,1708903842211,-500.0,0.00019178,2]
[315176931,1708903842219,-2523.02,0.00019178,2]
[315176932,1708903842229,-500.0,0.00019178,2]
[315176933,1708903842238,-500.0,0.00019178,2]
[315176934,1708903842247,-500.0,0.00019178,2]
[315176935,1708903842257,-500.0,0.00019178,2]
[315176936,1708903842266,-1000.0,0.00019178,2]
[315176937,1708903842275,-500.0,0.00019178,2]
[315176938,1708903842284,-542.65859334,0.00019178,2]
[315176939,1708903842293,-500.0,0.00019178,2]
[315176940,1708903842302,-1873.66,0.00019178,2]
[315176941,1708903842311,-500.0,0.00019178,2]
[315176942,1708903842321,-500.0,0.00019178,2]
[315176943,1708903842330,-500.0,0.00019178,2]
[315176944,1708903842339,-500.0,0.00019178,2]
[315176945,1708903842348,-500.0,0.00019178,2]
[315176946,1708903842357,-500.0,0.00019178,2]
[315176947,1708903842367,-1998.21,0.00019178,2]
[315176948,1708903842377,-500.0,0.00019178,2]
[315176949,1708903842388,-500.0,0.00019178,2]
[315176950,1708903842609,-500.0,0.00019178,2]
[315176951,1708903842619,-500.0,0.00019178,2]
[315176952,1708903842628,-500.0,0.00019178,2]
[315176953,1708903842637,-20113.34,0.00019178,2]
[315176954,1708903842646,-500.0,0.00019178,2]
[315176955,1708903842655,-500.0,0.00019178,2]
[315176956,1708903842665,-500.0,0.00019178,2]
[315176957,1708903842674,-500.0,0.00019178,2]
[315176958,1708903842682,-1308.09,0.00019178,2]
[315176959,1708903842691,-500.0,0.00019178,2]
[315176960,1708903842700,-500.0,0.00019178,2]
[315176961,1708903842709,-500.0,0.00019178,2]
[315176962,1708903842718,-500.0,0.00019178,2]
[315176963,1708903842727,-500.0,0.00019178,2]
[315176964,1708903842736,-500.0,0.00019178,2]
[315176965,1708903842745,-500.9168553,0.00019178,2]
[315176966,1708903842754,-500.0,0.00019178,2]
[315176967,1708903842763,-572.52818426,0.00019178,2]
[315176968,1708903842772,-500.0,0.00019178,2]
[315176969,1708903842781,-268.39371739,0.00019178,2]
[315176970,1708903842790,-500.0,0.00019178,2]
[315176971,1708903842889,-500.0,0.00019178,2]
[315176972,1708903842898,-500.0,0.00019178,2]
[315176973,1708903842908,-500.0,0.00019178,2]
[315176974,1708903842918,-500.0,0.00019178,2]
[315176975,1708903842927,-500.0,0.00019178,2]
[315176976,1708903842937,-500.0,0.00019178,2]
[315176977,1708903842946,-500.0,0.00019178,2]
[315176978,1708903842955,-500.0,0.00019178,2]
[315176979,1708903842965,-500.0,0.00019178,2]
[315176980,1708903842975,-500.0,0.00019178,2]
[315176981,1708903842984,-1926.14,0.00019178,2]
[315176982,1708903842993,-1600.96,0.00019178,2]
[315176984,1708903843002,-562.32781507,0.00019178,2]
[315176986,1708903843011,-500.0,0.00019178,2]
[315176987,1708903843021,-500.0,0.00019178,2]
[315176988,1708903843030,-155.87924966,0.00019178,2]
[315176989,1708903843040,-500.0,0.00019178,2]
[315176990,1708903843048,-500.0,0.00019178,2]
[315176991,1708903843057,-500.0,0.00019178,2]
[315176992,1708903843066,-500.0,0.00019178,2]
[315176993,1708903843076,-500.0,0.00019178,2]
[315176994,1708903843085,-7463.7,0.00019178,2]
[315176995,1708903843094,-500.0,0.00019178,2]
[315176996,1708903843103,-500.0,0.00019178,2]
[315176998,1708903843112,-500.0,0.00019178,2]
[315176999,1708903843121,-500.0,0.00019178,2]
[315177000,1708903843130,-586.26,0.00019178,2]
[315177001,1708903843139,-500.0,0.00019178,2]
[315177002,1708903843148,-500.0,0.00019178,2]
[315177003,1708903843157,-10500.83,0.00019178,2]
[315177004,1708903843166,-500.0,0.00019178,2]
[315177005,1708903843175,-500.0,0.00019178,2]
[315177006,1708903843185,-20464.22,0.00019178,2]
[315177008,1708903843194,-500.0,0.00019178,2]
[315177009,1708903843203,-678.24,0.00019178,2]
[315177010,1708903843212,-518.14198464,0.00019178,2]
[315177011,1708903843221,-500.0,0.00019178,2]
[315177012,1708903843231,-500.0,0.00019178,2]
[315177013,1708903843242,-500.0,0.00019178,2]
[315177014,1708903843251,-500.0,0.00019178,2]
[315177015,1708903843262,-500.0,0.00019178,2]
[315177016,1708903843271,-500.0,0.00019178,2]
[315177017,1708903843280,-500.0,0.00019178,2]
[315177018,1708903843290,-500.0,0.00019178,2]
[315177019,1708903843300,-500.0,0.00019178,2]
[315177020,1708903843309,-500.0,0.00019178,2]
[315177021,1708903843319,-500.0,0.00019178,2]
[315177022,1708903843328,-500.0,0.00019178,2]
[315177023,1708903843338,-500.0,0.00019178,2]
[315177024,1708903843348,-500.0,0.00019178,2]
[315177025,1708903843358,-500.0,0.00019178,2]
[315177026,1708903843367,-500.0,0.00019178,2]
[315177027,1708903843376,-500.0,0.00019178,2]
[315177028,1708903843384,-500.0,0.00019178,2]
[315177029,1708903843395,-2222.16,0.00019178,2]
[315177030,1708903843408,-500.0,0.00019178,2]
[315177032,1708903843417,-500.0,0.00019178,2]
[315177033,1708903843426,-2844.22,0.00019178,2]
[315177034,1708903843437,-625.63013097,0.00019178,2]
[315177035,1708903843446,-500.0,0.00019178,2]
[315177036,1708903843455,-500.0,0.00019178,2]
[315177037,1708903843464,-500.52544546,0.00019178,2]
[315177038,1708903843474,-500.0,0.00019178,2]
[315177039,1708903843484,-500.0,0.00019178,2]
[315177040,1708903843493,-4188.05,0.00019178,2]
[315177041,1708903843502,-500.0,0.00019178,2]
[315177042,1708903843511,-698.4,0.00019178,2]
[315177043,1708903843520,-500.0,0.00019178,2]
[315177044,1708903843530,-500.0,0.00019178,2]
[315177045,1708903843539,-2819.16,0.00019178,2]
[315177046,1708903843548,-500.0,0.00019178,2]
[315177047,1708903843557,-451.64073041,0.00019178,2]
[315177048,1708903843567,-500.0,0.00019178,2]
[315177049,1708903843576,-500.0,0.00019178,2]
[315177050,1708903843585,-1123.66,0.00019178,2]
[315177051,1708903843593,-3026.12,0.00019178,2]
[315177052,1708903843602,-500.0,0.00019178,2]
[315177053,1708903843611,-500.0,0.00019178,2]
[315177054,1708903843620,-224.21370726,0.00019178,2]
[315177055,1708903843629,-1434.89,0.00019178,2]
[315177056,1708903843637,-500.0,0.00019178,2]
[315177057,1708903843646,-500.0,0.00019178,2]
[315177058,1708903843655,-1383.54,0.00019178,2]
[315177059,1708903843665,-500.0,0.00019178,2]
[315177060,1708903843674,-500.0,0.00019178,2]
[315177061,1708903843683,-500.0,0.00019178,2]
[315177062,1708903843692,-400.0,0.00019178,2]
[315177063,1708903843701,-166.553266,0.00019178,2]
[315177064,1708903843710,-164.790521,0.00019178,2]
[315177065,1708903843720,-166.666666,0.00019178,2]
[315177066,1708903843729,-174.0,0.000194,2]
[315177067,1708903843738,-306.0,0.000194,2]
[315177068,1708903843747,-200.5569553,0.000194,2]
[315177069,1708903843756,-153.0,0.000194,2]
[315177070,1708903843765,-500.0,0.00019451,2]
[315177071,1708903843775,-500.0,0.00019451,2]
[315177072,1708903843784,-500.0,0.00019451,2]
[315177073,1708903843794,-500.0,0.00019451,2]
[315177074,1708903843803,-500.0,0.00019451,2]
[315177075,1708903843812,-500.0,0.00019452,2]
[315177076,1708903843821,-1778.66,0.00019452,2]
[315177077,1708903843830,-500.0,0.00019452,2]
[315177078,1708903843839,-397.38411833,0.00019452,2]
[315177079,1708903843848,-500.0,0.00019452,2]
[315177080,1708903843857,-501.22711499,0.00019452,2]
[315177081,1708903843866,-541.94821274,0.00019452,2]
[315177082,1708903843875,-389.05948452,0.00019452,2]
[315177083,1708903843884,-500.0,0.00019452,2]
[315177084,1708903843893,-500.0,0.00019452,2]
[315177085,1708903843902,-500.0,0.00019452,2]
[315177086,1708903843911,-500.0,0.00019452,2]
[315177087,1708903843921,-500.0,0.00019452,2]
[315177088,1708903843930,-218.11779643,0.00019452,2]
[315177089,1708903843939,-500.0,0.00019452,2]
[315177090,1708903843948,-500.0,0.00019452,2]
[315177091,1708903843957,-500.0,0.00019452,2]
[315177092,1708903843966,-500.0,0.00019452,2]
[315177093,1708903843976,-500.0,0.00019452,2]
[315177094,1708903843985,-500.0,0.00019452,2]
[315177095,1708903843994,-500.0,0.00019452,2]
[315177096,1708903844004,-500.0,0.00019452,2]
[315177097,1708903844013,-500.0,0.00019452,2]
[315177098,1708903844022,-609.6,0.00019452,2]
[315177099,1708903844031,-500.0,0.00019452,2]
[315177100,1708903844040,-500.0,0.00019452,2]
[315177101,1708903844049,-500.0,0.00019452,2]
[315177102,1708903844059,-500.0,0.00019452,2]
[315177103,1708903844068,-500.0,0.00019452,2]
[315177104,1708903844078,-500.0,0.00019452,2]
[315177105,1708903844087,-595.43,0.00019452,2]
[315177106,1708903844097,-500.0,0.00019452,2]
[315177107,1708903844106,-500.0,0.00019452,2]
[315177108,1708903844115,-500.0,0.00019452,2]
[315177109,1708903844124,-500.0,0.00019452,2]
[315177110,1708903844133,-500.0,0.00019452,2]
[315177111,1708903844143,-515.7261257,0.00019452,2]
[315177112,1708903844153,-500.0,0.00019452,2]
[315177113,1708903844162,-500.0,0.00019452,2]
[315177114,1708903844171,-500.0,0.00019452,2]
[315177115,1708903844180,-500.0,0.00019452,2]
[315177116,1708903844189,-500.0,0.00019452,2]
[315177117,1708903844198,-500.53936311,0.00019452,2]
[315177118,1708903844208,-420.68246109,0.00019452,2]
[315177119,1708903844217,-500.0,0.00019452,2]
[315177120,1708903844226,-500.0,0.00019452,2]
[315177121,1708903844235,-500.0,0.00019452,2]
[315177122,1708903844244,-500.0,0.00019452,2]
[315177123,1708903844253,-500.0,0.00019452,2]
[315177124,1708903844262,-1329.63,0.00019452,2]
[315177125,1708903844271,-500.0,0.00019452,2]
[315177126,1708903844280,-500.0,0.00019452,2]
[315177127,1708903844290,-151.0,0.00019452,2]
[315177128,1708903844300,-500.0,0.00019452,2]
[315177129,1708903844309,-500.0,0.00019452,2]
[315177130,1708903844318,-500.0,0.00019452,2]
[315177131,1708903844327,-500.0,0.00019452,2]
[315177132,1708903844337,-500.0,0.00019452,2]
[315177133,1708903844346,-345.59939046,0.00019452,2]
[315177134,1708903844355,-500.0,0.00019452,2]
[315177135,1708903844364,-596.37,0.00019452,2]
[315177136,1708903844373,-500.0,0.00019452,2]
[315177137,1708903844382,-500.0,0.00019452,2]
[315177138,1708903844391,-1425.67,0.00019452,2]
[315177139,1708903844402,-500.0,0.00019452,2]
[315177140,1708903844411,-500.0,0.00019452,2]
[315177141,1708903844420,-500.0,0.00019452,2]
[315177142,1708903844429,-722.27,0.00019452,2]
[315177143,1708903844438,-500.0,0.00019452,2]
[315177144,1708903844447,-500.0,0.00019452,2]
[315177145,1708903844456,-499.60684837,0.00019452,2]
[315177146,1708903844466,-500.0,0.00019452,2]
[315177147,1708903844475,-506.73604209,0.00019452,2]
[315177148,1708903844484,-500.0,0.00019452,2]
[315177149,1708903844494,-500.0,0.00019452,2]
[315177150,1708903844503,-577.39883783,0.00019452,2]
[315177151,1708903844512,-500.0,0.00019452,2]
[315177152,1708903844522,-500.0,0.00019452,2]
[315177153,1708903844530,-634.56249942,0.00019452,2]
[315177154,1708903844540,-500.0,0.00019452,2]
[315177155,1708903844549,-586.83187142,0.00019452,2]
[315177156,1708903844558,-500.0,0.00019452,2]
[315177157,1708903844567,-500.0,0.00019452,2]
[315177158,1708903844576,-500.0,0.00019452,2]
[315177159,1708903844585,-500.0,0.00019452,2]
[315177160,1708903844594,-1000.0,0.00019452,2]
[315177161,1708903844603,-500.0,0.00019452,2]
[315177162,1708903844613,-500.0,0.00019452,2]
[315177163,1708903844622,-521.6383826,0.00019452,2]
[315177164,1708903844631,-500.0,0.00019452,2]
[315177165,1708903844640,-2074.3,0.00019452,2]
[315177166,1708903844649,-500.0,0.00019452,2]
[315177167,1708903844658,-614.95785219,0.00019452,2]
[315177168,1708903844667,-500.0,0.00019452,2]
[315177169,1708903844676,-500.0,0.00019452,2]
[315177170,1708903844684,-500.0,0.00019452,2]
[315177171,1708903844693,-500.0,0.00019452,2]
[315177172,1708903844703,-500.0,0.00019452,2]
[315177173,1708903844712,-500.0,0.00019452,2]
[315177174,1708903844721,-510.22306871,0.00019452,2]
[315177175,1708903844730,-1643.7,0.00019452,2]
[315177176,1708903844738,-592.55105003,0.00019452,2]
[315177177,1708903844748,-500.0,0.00019452,2]
[315177178,1708903844756,-501.27644702,0.00019452,2]
[315177179,1708903844765,-500.0,0.00019452,2]
[315177180,1708903844774,-500.0,0.00019452,2]
[315177181,1708903844784,-500.0,0.00019452,2]
[315177182,1708903844794,-500.0,0.00019452,2]
[315177183,1708903844803,-500.0,0.00019452,2]
[315177184,1708903844813,-500.0,0.00019452,2]
[315177185,1708903844823,-500.0,0.00019452,2]
[315177186,1708903844832,-500.0,0.00019452,2]
[315177187,1708903844842,-500.0,0.00019452,2]
[315177188,1708903844853,-500.0,0.00019452,2]
[315177189,1708903844862,-500.0,0.00019452,2]
[315177190,1708903844871,-500.0,0.00019452,2]
[315177191,1708903844880,-500.0,0.00019452,2]
[315177192,1708903844889,-500.0,0.00019452,2]
[315177193,1708903844898,-500.0,0.00019452,2]
[315177194,1708903844907,-820.72,0.00019452,2]
[315177195,1708903844916,-935.75,0.00019452,2]
[315177196,1708903844925,-312.19112471,0.00019452,2]
[315177197,1708903844935,-500.0,0.00019452,2]
[315177198,1708903844944,-500.0,0.00019452,2]
[315177200,1708903844953,-500.0,0.00019452,2]
[315177201,1708903844962,-500.0,0.00019452,2]
[315177202,1708903844971,-500.0,0.00019452,2]
[315177203,1708903844980,-500.0,0.00019452,2]
[315177204,1708903844989,-501.59136464,0.00019452,2]
[315177205,1708903844998,-500.0,0.00019452,2]
[315177206,1708903845007,-500.0,0.00019452,2]
[315177207,1708903845017,-501.97126216,0.00019452,2]
[315177208,1708903845028,-640.14797302,0.00019452,2]
[315177209,1708903845037,-500.0,0.00019452,2]
[315177210,1708903845046,-544.51786006,0.00019452,2]
[315177211,1708903845055,-438.44196691,0.00019452,2]
[315177212,1708903845065,-500.0,0.00019452,2]
[315177213,1708903845075,-500.0,0.00019452,2]
[315177214,1708903845086,-500.0,0.00019452,2]
[315177215,1708903845096,-2323.85,0.00019452,2]
[315177216,1708903845106,-720.77,0.00019452,2]
[315177217,1708903845117,-500.0,0.00019452,2]
[315177218,1708903845128,-500.0,0.00019452,2]
[315177219,1708903845236,-500.0,0.00019452,2]
[315177220,1708903845247,-500.0,0.00019452,2]
[315177221,1708903845258,-500.0,0.00019452,2]
[315177222,1708903845269,-500.0,0.00019452,2]
[315177223,1708903845279,-500.0,0.00019452,2]
[315177224,1708903845296,-500.0,0.00019452,2]
[315177225,1708903845307,-500.0,0.00019452,2]
[315177226,1708903845318,-500.0,0.00019452,2]
[315177227,1708903845334,-500.0,0.00019452,2]
[315177228,1708903845345,-500.0,0.00019452,2]
[315177229,1708903845356,-500.0,0.00019452,2]
[315177230,1708903845367,-500.0,0.00019452,2]
[315177231,1708903845378,-791.48,0.00019452,2]
[315177232,1708903845388,-500.0,0.00019452,2]
[315177233,1708903845398,-11294.05,0.00019452,2]
[315177234,1708903845411,-500.0,0.00019452,2]
[315177235,1708903845421,-500.0,0.00019452,2]
[315177236,1708903845431,-1798.93,0.00019452,2]
[315177237,1708903845440,-2773.39,0.00019452,2]
[315177238,1708903845450,-3995.5,0.00019452,2]
[315177239,1708903845460,-500.0,0.00019452,2]
[315177240,1708903845470,-500.0,0.00019452,2]
[315177241,1708903845482,-500.0,0.00019452,2]
[315177242,1708903845493,-500.0,0.00019452,2]
[315177243,1708903845504,-211.99734928,0.00019452,2]
[315177244,1708903845514,-500.0,0.00019452,2]
[315177245,1708903845524,-500.0,0.00019452,2]
[315177246,1708903845534,-500.0,0.00019452,2]
[315177247,1708903845549,-500.0,0.00019452,2]
[315177248,1708903845559,-2523.02,0.00019452,2]
[315177249,1708903845568,-500.0,0.00019452,2]
[315177250,1708903845577,-500.0,0.00019452,2]
[315177251,1708903845587,-500.0,0.00019452,2]
[315177252,1708903845597,-1000.0,0.00019452,2]
[315177253,1708903845606,-500.0,0.00019452,2]
[315177254,1708903845615,-500.0,0.00019452,2]
[315177255,1708903845624,-1873.66,0.00019452,2]
[315177256,1708903845633,-500.0,0.00019452,2]
[315177257,1708903845643,-500.0,0.00019452,2]
[315177258,1708903845653,-500.0,0.00019452,2]
[315177259,1708903845664,-500.0,0.00019452,2]
[315177260,1708903845673,-1998.21,0.00019452,2]
[315177261,1708903845683,-500.0,0.00019452,2]
[315177262,1708903845692,-500.0,0.00019452,2]
[315177263,1708903845701,-500.0,0.00019452,2]
[315177264,1708903845710,-500.0,0.00019452,2]
[315177265,1708903845719,-500.0,0.00019452,2]
[315177266,1708903845729,-20113.34,0.00019452,2]
[315177267,1708903845738,-500.81653216,0.00019452,2]
[315177268,1708903845748,-500.0,0.00019452,2]
[315177269,1708903845757,-500.0,0.00019452,2]
[315177270,1708903845766,-500.0,0.00019452,2]
[315177271,1708903845776,-1308.09,0.00019452,2]
[315177272,1708903845785,-500.17639548,0.00019452,2]
[315177273,1708903845798,-500.0,0.00019452,2]
[315177274,1708903845807,-178.52864785,0.00019452,2]
[315177275,1708903845816,-500.0,0.00019452,2]
[315177276,1708903845825,-500.0,0.00019452,2]
[315177277,1708903845835,-500.0,0.00019452,2]
[315177278,1708903845846,-500.0,0.00019452,2]
[315177279,1708903845856,-501.43563149,0.00019452,2]
[315177280,1708903845867,-500.0,0.00019452,2]
[315177281,1708903845876,-500.0,0.00019452,2]
[315177282,1708903845885,-500.0,0.00019452,2]
[315177283,1708903845894,-500.0,0.00019452,2]
[315177284,1708903845903,-500.0,0.00019452,2]
[315177285,1708903845912,-500.0,0.00019452,2]
[315177286,1708903845925,-500.0,0.00019452,2]
[315177287,1708903845935,-1926.14,0.00019452,2]
[315177288,1708903845945,-1600.96,0.00019452,2]
[315177289,1708903845955,-500.0,0.00019452,2]
[315177290,1708903845964,-500.0,0.00019452,2]
[315177291,1708903845973,-500.0,0.00019452,2]
[315177292,1708903845982,-513.35654408,0.00019452,2]
[315177293,1708903845991,-500.0,0.00019452,2]
[315177294,1708903846001,-500.0,0.00019452,2]
[315177295,1708903846010,-504.30900144,0.00019452,2]
[315177296,1708903846020,-7463.7,0.00019452,2]
[315177297,1708903846030,-500.0,0.00019452,2]
[315177298,1708903846040,-500.0,0.00019452,2]
[315177299,1708903846050,-500.0,0.00019452,2]
[315177300,1708903846060,-586.26,0.00019452,2]
[315177301,1708903846069,-500.0,0.00019452,2]
[315177303,1708903846079,-500.0,0.00019452,2]
[315177304,1708903846089,-10500.83,0.00019452,2]
[315177305,1708903846098,-500.0,0.00019452,2]
[315177306,1708903846108,-500.0,0.00019452,2]
[315177307,1708903846117,-20464.22,0.00019452,2]
[315177308,1708903846127,-500.0,0.00019452,2]
[315177309,1708903846136,-678.24,0.00019452,2]
[315177310,1708903846145,-500.17034226,0.00019452,2]
[315177311,1708903846155,-500.0,0.00019452,2]
[315177312,1708903846164,-500.0,0.00019452,2]
[315177313,1708903846173,-500.0,0.00019452,2]
[315177314,1708903846183,-2222.16,0.00019452,2]
[315177315,1708903846193,-232.63178787,0.00019452,2]
[315177316,1708903846202,-500.0,0.00019452,2]
[315177317,1708903846211,-2844.22,0.00019452,2]
[315177318,1708903846221,-500.0,0.00019452,2]
[315177319,1708903846230,-500.0,0.00019452,2]
[315177320,1708903846239,-500.0,0.00019452,2]
[315177321,1708903846249,-500.0,0.00019452,2]
[315177322,1708903846258,-4188.05,0.00019452,2]
[315177323,1708903846268,-500.0,0.00019452,2]
[315177324,1708903846277,-698.4,0.00019452,2]
[315177325,1708903846286,-500.0,0.00019452,2]
[315177326,1708903846298,-500.0,0.00019452,2]
[315177327,1708903846308,-2819.16,0.00019452,2]
[315177328,1708903846317,-500.0,0.00019452,2]
[315177329,1708903846327,-500.0,0.00019452,2]
[315177330,1708903846336,-500.0,0.00019452,2]
[315177331,1708903846346,-1123.66,0.00019452,2]
[315177332,1708903846355,-3026.12,0.00019452,2]
[315177333,1708903846365,-500.0,0.00019452,2]
[315177334,1708903846374,-1434.89,0.00019452,2]
[315177335,1708903846383,-500.0,0.00019452,2]
[315177336,1708903846394,-500.0,0.00019452,2]
[315177337,1708903846405,-1383.54,0.00019452,2]
[315177338,1708903846414,-500.0,0.00019452,2]
[315177339,1708903846423,-4173.32151869,0.0001947,2]
[315177340,1708903846432,-182.51135653,0.00019473,2]
[315177341,1708903846443,-3148.29518075,0.00019475,2]
[315177342,1708903846452,-4173.32151869,0.00019485,2]
[315177343,1708903846461,-182.51135653,0.00019489,2]
[315177344,1708903846470,-3148.29518075,0.00019494,2]
[315177345,1708903846480,-3148.29518075,0.00019497,2]
[315177346,1708903846489,-182.51135653,0.00019498,2]
[315177347,1708903846499,-4173.32151869,0.00019499,2]
[315177348,1708903846509,-306.0,0.000195,2]
[315177349,1708903846518,-1002.29934527,0.00019526,2]
[315177350,1708903846527,-3231.23979688,0.00019535,2]
[315177351,1708903846537,-166.666666,0.00019627,2]
[315177352,1708903846547,-2375.02969774,0.000197,2]
[315177353,1708903846556,-2375.02969774,0.000197,2]
[315177354,1708903846567,-2375.02969774,0.000197,2]
[315177355,1708903846576,-3148.29518074,0.000197,2]
[315177356,1708903846585,-3148.29518074,0.000197,2]
[315177357,1708903846594,-3148.29518074,0.000197,2]
[315177358,1708903846603,-500.0,0.00019725,2]
[315177359,1708903846612,-500.0,0.00019725,2]
[315177360,1708903846622,-500.0,0.00019725,2]
[315177361,1708903846632,-319.09963093,0.00019725,2]
[315177362,1708903846641,-500.0,0.00019725,2]
[315177363,1708903846650,-500.0,0.00019725,2]
[315177364,1708903846659,-422.02967842,0.00019725,2]
[315177365,1708903846668,-500.0,0.00019726,2]
[315177366,1708903846677,-1778.66,0.00019726,2]
[315177367,1708903846686,-500.0,0.00019726,2]
[315177368,1708903846695,-439.43556303,0.00019726,2]
[315177369,1708903846705,-500.0,0.00019726,2]
[315177370,1708903846715,-500.0,0.00019726,2]
[315177371,1708903846725,-500.76231517,0.00019726,2]
[315177372,1708903846735,-501.38504518,0.00019726,2]
[315177373,1708903846745,-500.0,0.00019726,2]
[315177374,1708903846755,-500.0,0.00019726,2]
[315177375,1708903846765,-500.0,0.00019726,2]
[315177376,1708903846774,-500.0,0.00019726,2]
[315177377,1708903846783,-500.0,0.00019726,2]
[315177378,1708903846795,-609.6,0.00019726,2]
[315177379,1708903846804,-500.0,0.00019726,2]
[315177380,1708903846813,-500.0,0.00019726,2]
[315177381,1708903846822,-500.0,0.00019726,2]
[315177382,1708903846831,-595.43,0.00019726,2]
[315177383,1708903846840,-500.0,0.00019726,2]
[315177384,1708903846849,-500.92520509,0.00019726,2]
[315177385,1708903846858,-500.0,0.00019726,2]
[315177386,1708903846867,-500.0,0.00019726,2]
[315177387,1708903846876,-209.1137891,0.00019726,2]
[315177388,1708903846885,-500.0,0.00019726,2]
[315177389,1708903846893,-500.0,0.00019726,2]
[315177390,1708903846902,-500.0,0.00019726,2]
[315177391,1708903846911,-500.92354226,0.00019726,2]
[315177392,1708903846920,-500.0,0.00019726,2]
[315177393,1708903846929,-500.0,0.00019726,2]
[315177394,1708903846938,-500.0,0.00019726,2]
[315177395,1708903846948,-502.05058495,0.00019726,2]
[315177396,1708903846957,-1329.63,0.00019726,2]